[Event "Titled Tuesday Blitz January 17 Early 2023"]
[White "Todorovic, Bojan"]
[Black "Omelja, Artem"]
[WhiteFideId "917087"]
[BlackFideId "14119846"]
[WhiteElo "2195"]
[BlackElo "2446"]
[Result "0-1"]
[Round "07"]
[TimeControl "180+2"]
[Date "2023.01.17"]
[WhiteClock "0:00:12"]
[BlackClock "0:01:22"]

1. d4 {[%clk 0:02:59]}  Nf6 {[%clk 0:02:58]} 2. c4 {[%clk 0:02:58]}  e6 {[%clk 0:02:46]} 3. Nc3 {[%clk 0:02:51]}  d5 {[%clk 0:02:45]} 4. cxd5 {[%clk 0:02:49]}  exd5 {[%clk 0:02:44]} 5. Bg5 {[%clk 0:02:48]}  c6 {[%clk 0:02:42]} 6. e3 {[%clk 0:02:47]}  Nbd7 {[%clk 0:02:40]} 7. Bd3 {[%clk 0:02:45]}  h6 {[%clk 0:02:40]} 8. Bh4 {[%clk 0:02:44]}  Be7 {[%clk 0:02:37]} 9. Nf3 {[%clk 0:02:36]}  O-O {[%clk 0:02:38]} 10. O-O {[%clk 0:02:36]}  Re8 {[%clk 0:02:38]} 11. Qc2 {[%clk 0:02:34]}  Ne4 {[%clk 0:02:38]} 12. Bxe7 {[%clk 0:02:29]}  Qxe7 {[%clk 0:02:38]} 13. Bxe4 {[%clk 0:02:28]}  dxe4 {[%clk 0:02:39]} 14. Nd2 {[%clk 0:02:28]}  Nf6 {[%clk 0:02:40]} 15. Rae1 {[%clk 0:02:21]}  Bg4 {[%clk 0:02:33]} 16. f3 {[%clk 0:02:17]}  exf3 {[%clk 0:02:33]} 17. Nxf3 {[%clk 0:02:14]}  Ne4 {[%clk 0:02:30]} 18. Ne5 {[%clk 0:02:11]}  Nxc3 {[%clk 0:02:12]} 19. Rxf7 {[%clk 0:01:56]}  Qg5 {[%clk 0:01:54]} 20. Qb3 {[%clk 0:01:13]}  Be6 {[%clk 0:01:53]} 21. Qxb7 {[%clk 0:01:13]}  Rab8 {[%clk 0:01:30]} 22. Qxa7 {[%clk 0:00:23]}  Rxb2 {[%clk 0:01:28]} 23. g3 {[%clk 0:00:19]}  Ne2+ {[%clk 0:01:23]} 24. Kf1 {[%clk 0:00:12]}  Bh3+ {[%clk 0:01:22]} 0-1


[Site "https://www.chess.com"]

[Event "Titled Tuesday Blitz January 17 Early 2023"]
[White "Warchol, Kamil"]
[Black "Manukian, Artak"]
[WhiteFideId "21858241"]
[BlackFideId "13301373"]
[WhiteElo "2173"]
[BlackElo "2196"]
[Result "0-1"]
[Round "07"]
[TimeControl "180+2"]
[Date "2023.01.17"]
[WhiteClock "0:00:01"]
[BlackClock "0:00:23"]

1. e4 {[%clk 0:02:59]}  c6 {[%clk 0:02:57]} 2. c4 {[%clk 0:02:56]}  e5 {[%clk 0:02:56]} 3. Nf3 {[%clk 0:02:54]}  d6 {[%clk 0:02:55]} 4. d4 {[%clk 0:02:54]}  Nd7 {[%clk 0:02:55]} 5. Nc3 {[%clk 0:02:52]}  g6 {[%clk 0:02:55]} 6. Bd3 {[%clk 0:02:37]}  Bg7 {[%clk 0:02:53]} 7. Bc2 {[%clk 0:02:34]}  Ngf6 {[%clk 0:02:52]} 8. O-O {[%clk 0:02:28]}  O-O {[%clk 0:02:51]} 9. b3 {[%clk 0:02:21]}  exd4 {[%clk 0:02:35]} 10. Nxd4 {[%clk 0:02:17]}  Nc5 {[%clk 0:02:33]} 11. Ba3 {[%clk 0:01:55]}  Qe7 {[%clk 0:02:32]} 12. Re1 {[%clk 0:01:48]}  Rd8 {[%clk 0:02:11]} 13. Qd2 {[%clk 0:01:25]}  Be6 {[%clk 0:01:36]} 14. Rad1 {[%clk 0:01:18]}  h5 {[%clk 0:01:32]} 15. h3 {[%clk 0:01:10]}  Qf8 {[%clk 0:01:30]} 16. Qe3 {[%clk 0:01:01]}  Re8 {[%clk 0:01:23]} 17. e5 {[%clk 0:00:47]}  Bd7 {[%clk 0:01:04]} 18. f4 {[%clk 0:00:45]}  b6 {[%clk 0:01:03]} 19. Qf3 {[%clk 0:00:39]}  dxe5 {[%clk 0:01:00]} 20. fxe5 {[%clk 0:00:38]}  Nh7 {[%clk 0:01:01]} 21. Nxc6 {[%clk 0:00:32]}  Bxc6 {[%clk 0:00:57]} 22. Qxc6 {[%clk 0:00:31]}  Bxe5 {[%clk 0:00:57]} 23. Nd5 {[%clk 0:00:28]}  Re6 {[%clk 0:00:53]} 24. Qb5 {[%clk 0:00:08]}  Rae8 {[%clk 0:00:51]} 25. Qb4 {[%clk 0:00:05]}  Bd4+ {[%clk 0:00:42]} 26. Kh1 {[%clk 0:00:04]}  Rxe1+ {[%clk 0:00:38]} 27. Rxe1 {[%clk 0:00:05]}  Rxe1+ {[%clk 0:00:28]} 28. Qxe1 {[%clk 0:00:06]}  Nf6 {[%clk 0:00:29]} 29. Qd2 {[%clk 0:00:03]}  Be5 {[%clk 0:00:25]} 30. Qe3 {[%clk 0:00:02]}  Qd6 {[%clk 0:00:23]} 31. Nxf6+ {[%clk 0:00:01]}  Qxf6 {[%clk 0:00:23]} 32. Be4 {[%clk 0:00:01]}  Qf1+ {[%clk 0:00:23]} 0-1


[Site "https://www.chess.com"]

[Event "Titled Tuesday Blitz January 17 Early 2023"]
[White "Berezin, Viktor"]
[Black "Shipov, Sergei"]
[WhiteFideId "14107872"]
[BlackFideId "4113624"]
[WhiteElo "2307"]
[BlackElo "2541"]
[Result "0-1"]
[Round "07"]
[TimeControl "180+2"]
[Date "2023.01.17"]
[WhiteClock "0:00:02"]
[BlackClock "0:01:29"]

1. d4 {[%clk 0:03:00]}  d5 {[%clk 0:02:58]} 2. c4 {[%clk 0:03:00]}  dxc4 {[%clk 0:02:58]} 3. Nf3 {[%clk 0:02:58]}  Nf6 {[%clk 0:02:58]} 4. e3 {[%clk 0:02:58]}  e6 {[%clk 0:02:58]} 5. Bxc4 {[%clk 0:02:57]}  c5 {[%clk 0:02:59]} 6. O-O {[%clk 0:02:57]}  Nc6 {[%clk 0:02:59]} 7. Qe2 {[%clk 0:02:44]}  a6 {[%clk 0:02:59]} 8. a4 {[%clk 0:02:43]}  cxd4 {[%clk 0:02:58]} 9. exd4 {[%clk 0:02:42]}  Nxd4 {[%clk 0:02:53]} 10. Nxd4 {[%clk 0:02:37]}  Qxd4 {[%clk 0:02:54]} 11. Rd1 {[%clk 0:02:32]}  Qg4 {[%clk 0:02:49]} 12. Qxg4 {[%clk 0:01:55]}  Nxg4 {[%clk 0:02:49]} 13. Nc3 {[%clk 0:01:54]}  Bd7 {[%clk 0:02:41]} 14. Bf4 {[%clk 0:01:50]}  Rc8 {[%clk 0:02:37]} 15. Be2 {[%clk 0:01:49]}  Nf6 {[%clk 0:02:37]} 16. Bf3 {[%clk 0:01:47]}  Bc6 {[%clk 0:02:37]} 17. Bxc6+ {[%clk 0:01:31]}  Rxc6 {[%clk 0:02:36]} 18. Rac1 {[%clk 0:01:31]}  Be7 {[%clk 0:02:33]} 19. Ne2 {[%clk 0:01:27]}  Nd5 {[%clk 0:02:26]} 20. Rxc6 {[%clk 0:01:22]}  bxc6 {[%clk 0:02:26]} 21. Be5 {[%clk 0:01:09]}  f6 {[%clk 0:02:25]} 22. Bc3 {[%clk 0:01:09]}  Kd7 {[%clk 0:02:25]} 23. g3 {[%clk 0:00:58]}  Rb8 {[%clk 0:02:24]} 24. Kg2 {[%clk 0:00:57]}  e5 {[%clk 0:02:22]} 25. Kf3 {[%clk 0:00:52]}  Ke6 {[%clk 0:02:22]} 26. Rd2 {[%clk 0:00:52]}  Bb4 {[%clk 0:02:12]} 27. Ke4 {[%clk 0:00:44]}  Bxc3 {[%clk 0:02:06]} 28. bxc3 {[%clk 0:00:31]}  Rb3 {[%clk 0:02:05]} 29. Kd3 {[%clk 0:00:25]}  Ra3 {[%clk 0:02:05]} 30. f4 {[%clk 0:00:17]}  Rxa4 {[%clk 0:02:02]} 31. fxe5 {[%clk 0:00:16]}  fxe5 {[%clk 0:02:02]} 32. Rb2 {[%clk 0:00:16]}  c5 {[%clk 0:01:52]} 33. Rb7 {[%clk 0:00:15]}  e4+ {[%clk 0:01:52]} 34. Kd2 {[%clk 0:00:14]}  Ra2+ {[%clk 0:01:52]} 35. Ke1 {[%clk 0:00:14]}  Kf6 {[%clk 0:01:48]} 36. Rd7 {[%clk 0:00:14]}  Ne3 {[%clk 0:01:48]} 37. Rd6+ {[%clk 0:00:12]}  Ke5 {[%clk 0:01:48]} 38. Rd7 {[%clk 0:00:11]}  Ra1+ {[%clk 0:01:40]} 39. Kf2 {[%clk 0:00:09]}  Ng4+ {[%clk 0:01:39]} 40. Kg2 {[%clk 0:00:09]}  Ra2 {[%clk 0:01:38]} 41. Kh3 {[%clk 0:00:06]}  Nf2+ {[%clk 0:01:38]} 42. Kg2 {[%clk 0:00:06]}  Rxe2 {[%clk 0:01:38]} 43. Rxg7 {[%clk 0:00:05]}  Nd3+ {[%clk 0:01:32]} 44. Kh3 {[%clk 0:00:04]}  Rc2 {[%clk 0:01:31]} 45. Rxh7 {[%clk 0:00:03]}  Rxc3 {[%clk 0:01:31]} 46. Ra7 {[%clk 0:00:03]}  e3 {[%clk 0:01:31]} 47. Ra8 {[%clk 0:00:02]}  Ke4 {[%clk 0:01:30]} 48. Kg4 {[%clk 0:00:02]}  e2 {[%clk 0:01:29]} 49. Re8+ {[%clk 0:00:02]}  Ne5+ {[%clk 0:01:29]} 50. Kg5 {[%clk 0:00:01]}  e1=Q {[%clk 0:01:29]} 51. Kf6 {[%clk 0:00:02]}  Rf3+ {[%clk 0:01:29]} 52. Ke6 {[%clk 0:00:02]}  Qd2 {[%clk 0:01:29]} 53. Rd8 {[%clk 0:00:01]}  Qxd8 {[%clk 0:01:28]} 54. h4 {[%clk 0:00:02]}  Qd7# {[%clk 0:01:29]} 0-1


[Site "https://www.chess.com"]

[Event "Titled Tuesday Blitz January 17 Early 2023"]
[White "Dimitrov, Atanas"]
[Black "Kozin, Yuri"]
[WhiteFideId "2901315"]
[BlackFideId "4129920"]
[WhiteElo "2269"]
[BlackElo "2251"]
[Result "1/2-1/2"]
[Round "07"]
[TimeControl "180+2"]
[Date "2023.01.17"]
[WhiteClock "0:00:03"]
[BlackClock "0:00:15"]

1. Nf3 {[%clk 0:03:00]}  d5 {[%clk 0:02:59]} 2. e3 {[%clk 0:03:01]}  Nf6 {[%clk 0:02:59]} 3. c4 {[%clk 0:03:01]}  c6 {[%clk 0:02:58]} 4. Nc3 {[%clk 0:03:02]}  Bg4 {[%clk 0:02:54]} 5. b3 {[%clk 0:03:02]}  e6 {[%clk 0:02:54]} 6. Bb2 {[%clk 0:03:02]}  Nbd7 {[%clk 0:02:54]} 7. Be2 {[%clk 0:03:03]}  Bd6 {[%clk 0:02:54]} 8. d4 {[%clk 0:03:03]}  O-O {[%clk 0:02:53]} 9. O-O {[%clk 0:03:03]}  Qe7 {[%clk 0:02:52]} 10. h3 {[%clk 0:03:03]}  Bxf3 {[%clk 0:02:50]} 11. Bxf3 {[%clk 0:03:04]}  dxc4 {[%clk 0:02:50]} 12. bxc4 {[%clk 0:03:03]}  Ba3 {[%clk 0:02:33]} 13. Bxa3 {[%clk 0:02:55]}  Qxa3 {[%clk 0:02:34]} 14. Qc2 {[%clk 0:02:55]}  Qe7 {[%clk 0:02:27]} 15. Rab1 {[%clk 0:02:55]}  Rab8 {[%clk 0:02:27]} 16. Rfc1 {[%clk 0:02:43]}  Rfd8 {[%clk 0:02:23]} 17. Rb2 {[%clk 0:02:35]}  Nb6 {[%clk 0:02:21]} 18. Qb3 {[%clk 0:02:31]}  e5 {[%clk 0:02:17]} 19. d5 {[%clk 0:02:21]}  e4 {[%clk 0:02:17]} 20. Be2 {[%clk 0:02:21]}  cxd5 {[%clk 0:02:17]} 21. cxd5 {[%clk 0:02:20]}  Nbxd5 {[%clk 0:02:17]} 22. Nxd5 {[%clk 0:02:11]}  Nxd5 {[%clk 0:02:17]} 23. Rbc2 {[%clk 0:02:10]}  Nb6 {[%clk 0:02:16]} 24. a4 {[%clk 0:02:07]}  Rbc8 {[%clk 0:02:13]} 25. a5 {[%clk 0:02:06]}  Rxc2 {[%clk 0:02:13]} 26. Qxc2 {[%clk 0:02:02]}  Nd5 {[%clk 0:02:11]} 27. Bc4 {[%clk 0:02:01]}  h6 {[%clk 0:02:06]} 28. Qb3 {[%clk 0:01:49]}  Nf6 {[%clk 0:01:35]} 29. Rb1 {[%clk 0:01:46]}  Rd7 {[%clk 0:01:34]} 30. Bb5 {[%clk 0:01:43]}  Rc7 {[%clk 0:01:34]} 31. Bf1 {[%clk 0:01:42]}  Kh7 {[%clk 0:01:31]} 32. Qb5 {[%clk 0:01:33]}  a6 {[%clk 0:01:29]} 33. Qb6 {[%clk 0:01:29]}  Nd5 {[%clk 0:01:27]} 34. Qd4 {[%clk 0:01:24]}  Nc3 {[%clk 0:01:21]} 35. Ra1 {[%clk 0:01:23]}  Nb5 {[%clk 0:01:19]} 36. Qd5 {[%clk 0:01:16]}  Rd7 {[%clk 0:01:17]} 37. Qb3 {[%clk 0:01:11]}  Qe5 {[%clk 0:01:15]} 38. Rb1 {[%clk 0:01:10]}  f5 {[%clk 0:01:04]} 39. g3 {[%clk 0:01:06]}  Rd5 {[%clk 0:01:03]} 40. Bc4 {[%clk 0:00:56]}  Rc5 {[%clk 0:01:01]} 41. Bf1 {[%clk 0:00:55]}  Nd6 {[%clk 0:01:01]} 42. Qb6 {[%clk 0:00:45]}  Rxa5 {[%clk 0:00:57]} 43. Rd1 {[%clk 0:00:44]}  Rd5 {[%clk 0:00:57]} 44. Rc1 {[%clk 0:00:44]}  Nb5 {[%clk 0:00:52]} 45. Bc4 {[%clk 0:00:40]}  Rd7 {[%clk 0:00:48]} 46. Be6 {[%clk 0:00:35]}  Rc7 {[%clk 0:00:43]} 47. Rxc7 {[%clk 0:00:19]}  Nxc7 {[%clk 0:00:42]} 48. Bc4 {[%clk 0:00:20]}  Ne8 {[%clk 0:00:34]} 49. Qxb7 {[%clk 0:00:19]}  a5 {[%clk 0:00:34]} 50. Qa8 {[%clk 0:00:17]}  Nf6 {[%clk 0:00:33]} 51. Kg2 {[%clk 0:00:12]}  h5 {[%clk 0:00:34]} 52. Bf7 {[%clk 0:00:09]}  Qe7 {[%clk 0:00:30]} 53. Bc4 {[%clk 0:00:08]}  h4 {[%clk 0:00:29]} 54. Qxa5 {[%clk 0:00:08]}  hxg3 {[%clk 0:00:29]} 55. Kxg3 {[%clk 0:00:08]}  g6 {[%clk 0:00:27]} 56. Kg2 {[%clk 0:00:07]}  Nh5 {[%clk 0:00:27]} 57. Qd5 {[%clk 0:00:06]}  Qg7 {[%clk 0:00:26]} 58. Qe6 {[%clk 0:00:04]}  Kh6 {[%clk 0:00:25]} 59. Qc8 {[%clk 0:00:04]}  Qf6 {[%clk 0:00:25]} 60. Qg8 {[%clk 0:00:03]}  f4 {[%clk 0:00:24]} 61. exf4 {[%clk 0:00:03]}  Nxf4+ {[%clk 0:00:20]} 62. Kh2 {[%clk 0:00:03]}  Kg5 {[%clk 0:00:18]} 63. Qc8 {[%clk 0:00:03]}  Qf5 {[%clk 0:00:17]} 64. Qd8+ {[%clk 0:00:03]}  Kh5 {[%clk 0:00:15]} 65. Qh8+ {[%clk 0:00:03]}  Kg5 {[%clk 0:00:15]} 66. Bf1 {[%clk 0:00:03]}  Nh5 {[%clk 0:00:14]} 67. Qd8+ {[%clk 0:00:02]}  Nf6 {[%clk 0:00:14]} 68. Qd2+ {[%clk 0:00:03]}  Qf4+ {[%clk 0:00:14]} 69. Qxf4+ {[%clk 0:00:02]}  Kxf4 {[%clk 0:00:15]} 70. Kg2 {[%clk 0:00:03]}  Nd5 {[%clk 0:00:13]} 71. Bc4 {[%clk 0:00:02]}  Ne7 {[%clk 0:00:12]} 72. Bf7 {[%clk 0:00:02]}  g5 {[%clk 0:00:12]} 73. Be6 {[%clk 0:00:02]}  Nc6 {[%clk 0:00:11]} 74. Bg4 {[%clk 0:00:03]}  Nd4 {[%clk 0:00:12]} 75. Bd1 {[%clk 0:00:03]}  Nf5 {[%clk 0:00:09]} 76. Bg4 {[%clk 0:00:03]}  Nh4+ {[%clk 0:00:10]} 77. Kf1 {[%clk 0:00:03]}  e3 {[%clk 0:00:10]} 78. Ke2 {[%clk 0:00:02]}  exf2 {[%clk 0:00:10]} 79. Kxf2 {[%clk 0:00:03]}  Ng6 {[%clk 0:00:11]} 80. Bc8 {[%clk 0:00:03]}  Ne5 {[%clk 0:00:12]} 81. Kg2 {[%clk 0:00:03]}  Nd3 {[%clk 0:00:12]} 82. Bg4 {[%clk 0:00:03]}  Nc5 {[%clk 0:00:12]} 83. Bc8 {[%clk 0:00:04]}  Ne4 {[%clk 0:00:13]} 84. Bg4 {[%clk 0:00:04]}  Nf6 {[%clk 0:00:14]} 85. Bc8 {[%clk 0:00:04]}  g4 {[%clk 0:00:14]} 86. hxg4 {[%clk 0:00:03]}  Nxg4 {[%clk 0:00:15]} 1/2-1/2


[Site "https://www.chess.com"]

[Event "Titled Tuesday Blitz January 17 Early 2023"]
[White "Injac, Teodora"]
[Black "Pein, Jonathan"]
[WhiteFideId "932400"]
[BlackFideId "417092"]
[WhiteElo "2391"]
[BlackElo "2265"]
[Result "0-1"]
[Round "07"]
[TimeControl "180+2"]
[Date "2023.01.17"]
[WhiteClock "0:00:03"]
[BlackClock "0:00:07"]

1. d3 {[%clk 0:02:59]}  g6 {[%clk 0:02:56]} 2. Nf3 {[%clk 0:03:00]}  Bg7 {[%clk 0:02:57]} 3. g3 {[%clk 0:03:00]}  b6 {[%clk 0:02:54]} 4. Bg2 {[%clk 0:03:00]}  Bb7 {[%clk 0:02:55]} 5. e4 {[%clk 0:03:00]}  d5 {[%clk 0:02:51]} 6. e5 {[%clk 0:02:57]}  c5 {[%clk 0:02:48]} 7. h4 {[%clk 0:02:51]}  h6 {[%clk 0:02:43]} 8. Qe2 {[%clk 0:02:44]}  e6 {[%clk 0:02:42]} 9. c4 {[%clk 0:02:34]}  Ne7 {[%clk 0:02:40]} 10. Nc3 {[%clk 0:02:33]}  a6 {[%clk 0:02:38]} 11. Bf4 {[%clk 0:02:28]}  Nbc6 {[%clk 0:02:36]} 12. O-O {[%clk 0:02:21]}  Nf5 {[%clk 0:02:31]} 13. cxd5 {[%clk 0:01:58]}  exd5 {[%clk 0:02:11]} 14. Qd2 {[%clk 0:01:57]}  O-O {[%clk 0:02:04]} 15. Rfe1 {[%clk 0:01:56]}  Re8 {[%clk 0:02:01]} 16. Rab1 {[%clk 0:01:30]}  b5 {[%clk 0:01:41]} 17. Rbc1 {[%clk 0:01:24]}  Qd7 {[%clk 0:01:23]} 18. Nd1 {[%clk 0:01:22]}  Bf8 {[%clk 0:01:21]} 19. Ne3 {[%clk 0:01:21]}  Nxe3 {[%clk 0:01:14]} 20. Bxe3 {[%clk 0:01:10]}  d4 {[%clk 0:01:06]} 21. Bxh6 {[%clk 0:01:08]}  Ne7 {[%clk 0:00:58]} 22. Bxf8 {[%clk 0:01:06]}  Rxf8 {[%clk 0:00:58]} 23. Rxc5 {[%clk 0:00:58]}  Nf5 {[%clk 0:00:51]} 24. Qg5 {[%clk 0:00:49]}  Ng7 {[%clk 0:00:41]} 25. Rec1 {[%clk 0:00:37]}  Ne6 {[%clk 0:00:41]} 26. Qh6 {[%clk 0:00:37]}  Bxf3 {[%clk 0:00:38]} 27. Bxf3 {[%clk 0:00:35]}  Nxc5 {[%clk 0:00:38]} 28. Bxa8 {[%clk 0:00:30]}  Nxd3 {[%clk 0:00:38]} 29. Bc6 {[%clk 0:00:19]}  Qc7 {[%clk 0:00:25]} 30. Rc2 {[%clk 0:00:15]}  Nb4 {[%clk 0:00:25]} 31. Rc5 {[%clk 0:00:03]}  Nxc6 {[%clk 0:00:18]} 32. Qc1 {[%clk 0:00:04]}  Rc8 {[%clk 0:00:17]} 33. h5 {[%clk 0:00:04]}  Qd7 {[%clk 0:00:15]} 34. hxg6 {[%clk 0:00:05]}  fxg6 {[%clk 0:00:16]} 35. Qg5 {[%clk 0:00:04]}  Qe6 {[%clk 0:00:13]} 36. f4 {[%clk 0:00:04]}  Rf8 {[%clk 0:00:12]} 37. Qh6 {[%clk 0:00:02]}  d3 {[%clk 0:00:12]} 38. Rc1 {[%clk 0:00:01]}  d2 {[%clk 0:00:12]} 39. Rd1 {[%clk 0:00:02]}  Nd4 {[%clk 0:00:11]} 40. Kf2 {[%clk 0:00:02]}  Nf5 {[%clk 0:00:06]} 41. Qg5 {[%clk 0:00:02]}  Qb6+ {[%clk 0:00:06]} 42. Ke2 {[%clk 0:00:02]}  Qe3+ {[%clk 0:00:07]} 43. Kf1 {[%clk 0:00:03]}  Qf3+ {[%clk 0:00:07]} 44. Kg1 {[%clk 0:00:03]}  Qxg3+ {[%clk 0:00:07]} 45. Kf1 {[%clk 0:00:03]} 0-1


[Site "https://www.chess.com"]

[Event "Titled Tuesday Blitz January 17 Early 2023"]
[White "Goltseva, Ekaterina"]
[Black "Arabidze, Meri"]
[WhiteFideId "24173770"]
[BlackFideId "13604040"]
[WhiteElo "2283"]
[BlackElo "2441"]
[Result "0-1"]
[Round "07"]
[TimeControl "180+2"]
[Date "2023.01.17"]
[WhiteClock "0:00:01"]
[BlackClock "0:01:07"]

1. Nf3 {[%clk 0:02:43]}  f5 {[%clk 0:02:58]} 2. d4 {[%clk 0:02:42]}  Nf6 {[%clk 0:02:58]} 3. g3 {[%clk 0:02:41]}  e6 {[%clk 0:02:59]} 4. Bg2 {[%clk 0:02:40]}  d5 {[%clk 0:02:59]} 5. c4 {[%clk 0:02:39]}  c6 {[%clk 0:02:59]} 6. O-O {[%clk 0:02:36]}  Bd6 {[%clk 0:03:00]} 7. b3 {[%clk 0:02:36]}  Qe7 {[%clk 0:03:00]} 8. a4 {[%clk 0:02:33]}  a5 {[%clk 0:02:59]} 9. Ba3 {[%clk 0:02:33]}  Bxa3 {[%clk 0:03:00]} 10. Nxa3 {[%clk 0:02:34]}  O-O {[%clk 0:03:00]} 11. Nc2 {[%clk 0:02:29]}  Na6 {[%clk 0:03:00]} 12. Ne5 {[%clk 0:02:27]}  Bd7 {[%clk 0:02:55]} 13. Qd2 {[%clk 0:02:22]}  b6 {[%clk 0:02:47]} 14. f3 {[%clk 0:02:03]}  c5 {[%clk 0:02:44]} 15. e3 {[%clk 0:01:54]}  Rfd8 {[%clk 0:02:43]} 16. Qe2 {[%clk 0:01:50]}  Be8 {[%clk 0:02:35]} 17. Rfd1 {[%clk 0:01:45]}  Nb4 {[%clk 0:02:21]} 18. Nxb4 {[%clk 0:01:43]}  axb4 {[%clk 0:02:22]} 19. Rac1 {[%clk 0:01:39]}  Rac8 {[%clk 0:02:16]} 20. Qe1 {[%clk 0:01:13]}  Bh5 {[%clk 0:02:14]} 21. h3 {[%clk 0:01:06]}  Be8 {[%clk 0:02:10]} 22. g4 {[%clk 0:01:03]}  dxc4 {[%clk 0:02:10]} 23. Nxc4 {[%clk 0:00:59]}  fxg4 {[%clk 0:02:04]} 24. hxg4 {[%clk 0:00:51]}  Nd5 {[%clk 0:02:04]} 25. dxc5 {[%clk 0:00:39]}  bxc5 {[%clk 0:02:04]} 26. Kh2 {[%clk 0:00:28]}  Qf6 {[%clk 0:01:54]} 27. Qg3 {[%clk 0:00:26]}  Nxe3 {[%clk 0:01:42]} 28. Rxd8 {[%clk 0:00:17]}  Rxd8 {[%clk 0:01:42]} 29. g5 {[%clk 0:00:17]}  Qd4 {[%clk 0:01:35]} 30. Nxe3 {[%clk 0:00:12]}  Qxe3 {[%clk 0:01:36]} 31. Re1 {[%clk 0:00:11]}  Qxb3 {[%clk 0:01:31]} 32. Bh3 {[%clk 0:00:07]}  Bf7 {[%clk 0:01:25]} 33. Qc7 {[%clk 0:00:07]}  Qd5 {[%clk 0:01:23]} 34. Bg2 {[%clk 0:00:05]}  Qxg5 {[%clk 0:01:16]} 35. a5 {[%clk 0:00:02]}  Qh4+ {[%clk 0:01:16]} 36. Kg1 {[%clk 0:00:02]}  Qxe1+ {[%clk 0:01:16]} 37. Kh2 {[%clk 0:00:01]}  Qh4+ {[%clk 0:01:16]} 38. Kg1 {[%clk 0:00:02]}  Rd1+ {[%clk 0:01:15]} 39. Bf1 {[%clk 0:00:01]}  h6 {[%clk 0:01:07]} 0-1


[Site "https://www.chess.com"]

[Event "Titled Tuesday Blitz January 17 Early 2023"]
[White "Sadubayev, Airat"]
[Black "Shuvalov, Evgenij"]
[WhiteFideId "13713264"]
[BlackFideId "4187237"]
[WhiteElo "2320"]
[BlackElo "2038"]
[Result "1-0"]
[Round "07"]
[TimeControl "180+2"]
[Date "2023.01.17"]
[WhiteClock "0:01:57"]
[BlackClock "0:00:30"]

1. d4 {[%clk 0:02:59]}  Nf6 {[%clk 0:02:59]} 2. c4 {[%clk 0:02:59]}  g6 {[%clk 0:02:57]} 3. Nc3 {[%clk 0:02:58]}  d5 {[%clk 0:02:57]} 4. cxd5 {[%clk 0:02:57]}  Nxd5 {[%clk 0:02:58]} 5. e4 {[%clk 0:02:56]}  Nxc3 {[%clk 0:02:58]} 6. bxc3 {[%clk 0:02:57]}  Bg7 {[%clk 0:02:59]} 7. Nf3 {[%clk 0:02:57]}  c5 {[%clk 0:02:59]} 8. Be3 {[%clk 0:02:57]}  O-O {[%clk 0:02:52]} 9. Be2 {[%clk 0:02:57]}  Nd7 {[%clk 0:02:50]} 10. O-O {[%clk 0:02:55]}  Qa5 {[%clk 0:02:44]} 11. Qb3 {[%clk 0:02:50]}  Nf6 {[%clk 0:02:39]} 12. e5 {[%clk 0:02:38]}  Be6 {[%clk 0:01:02]} 13. c4 {[%clk 0:02:38]}  Ng4 {[%clk 0:00:52]} 14. d5 {[%clk 0:02:25]}  Nxe3 {[%clk 0:00:49]} 15. Qxe3 {[%clk 0:02:25]}  Bf5 {[%clk 0:00:49]} 16. Bd3 {[%clk 0:02:23]}  Qa3 {[%clk 0:00:45]} 17. Rfd1 {[%clk 0:02:03]}  f6 {[%clk 0:00:31]} 18. Bxf5 {[%clk 0:02:00]}  Qxe3 {[%clk 0:00:30]} 19. Be6+ {[%clk 0:02:00]}  Kh8 {[%clk 0:00:31]} 20. fxe3 {[%clk 0:02:01]}  fxe5 {[%clk 0:00:30]} 21. e4 {[%clk 0:01:57]} 1-0


[Site "https://www.chess.com"]

[Event "Titled Tuesday Blitz January 17 Early 2023"]
[White "Tomaszewski, Kacper"]
[Black "Niekras, Dawid"]
[WhiteFideId "1127373"]
[BlackFideId "1160451"]
[WhiteElo "2313"]
[BlackElo "2315"]
[Result "1-0"]
[Round "07"]
[TimeControl "180+2"]
[Date "2023.01.17"]
[WhiteClock "0:00:08"]
[BlackClock "0:00:01"]

1. Nf3 {[%clk 0:03:00]}  g6 {[%clk 0:02:58]} 2. g3 {[%clk 0:02:57]}  Bg7 {[%clk 0:02:59]} 3. Bg2 {[%clk 0:02:58]}  c5 {[%clk 0:02:58]} 4. O-O {[%clk 0:02:58]}  Nc6 {[%clk 0:02:58]} 5. c4 {[%clk 0:02:57]}  e5 {[%clk 0:02:58]} 6. Nc3 {[%clk 0:02:51]}  Nge7 {[%clk 0:02:58]} 7. a3 {[%clk 0:02:44]}  O-O {[%clk 0:02:37]} 8. b4 {[%clk 0:02:44]}  cxb4 {[%clk 0:02:01]} 9. axb4 {[%clk 0:02:44]}  e4 {[%clk 0:02:01]} 10. Ng5 {[%clk 0:02:39]}  d5 {[%clk 0:01:43]} 11. b5 {[%clk 0:02:30]}  Ne5 {[%clk 0:01:24]} 12. cxd5 {[%clk 0:02:28]}  Nxd5 {[%clk 0:01:18]} 13. Ngxe4 {[%clk 0:02:26]}  Nxc3 {[%clk 0:01:05]} 14. Nxc3 {[%clk 0:02:27]}  Bg4 {[%clk 0:00:58]} 15. Qb3 {[%clk 0:02:19]}  Qd7 {[%clk 0:00:55]} 16. Ba3 {[%clk 0:01:50]}  Rfe8 {[%clk 0:00:52]} 17. Ne4 {[%clk 0:01:38]}  Bxe2 {[%clk 0:00:44]} 18. Rfe1 {[%clk 0:01:32]}  Bc4 {[%clk 0:00:39]} 19. Qc3 {[%clk 0:01:04]}  Bxb5 {[%clk 0:00:10]} 20. d4 {[%clk 0:01:00]}  Nc4 {[%clk 0:00:09]} 21. Nc5 {[%clk 0:00:43]}  Qxd4 {[%clk 0:00:08]} 22. Qxd4 {[%clk 0:00:30]}  Bxd4 {[%clk 0:00:09]} 23. Bxb7 {[%clk 0:00:29]}  Rab8 {[%clk 0:00:07]} 24. Rxe8+ {[%clk 0:00:19]}  Rxe8 {[%clk 0:00:08]} 25. Rd1 {[%clk 0:00:18]}  Nxa3 {[%clk 0:00:04]} 26. Rxd4 {[%clk 0:00:17]}  Re1+ {[%clk 0:00:04]} 27. Kg2 {[%clk 0:00:18]}  Kg7 {[%clk 0:00:04]} 28. Rd8 {[%clk 0:00:09]}  Rc1 {[%clk 0:00:04]} 29. Ne4 {[%clk 0:00:06]}  Bf1+ {[%clk 0:00:04]} 30. Kf3 {[%clk 0:00:06]}  Nb5 {[%clk 0:00:03]} 31. Nd6 {[%clk 0:00:06]}  Nxd6 {[%clk 0:00:03]} 32. Rxd6 {[%clk 0:00:07]}  Rc3+ {[%clk 0:00:03]} 33. Kf4 {[%clk 0:00:06]}  Rc2 {[%clk 0:00:03]} 34. f3 {[%clk 0:00:04]}  Rxh2 {[%clk 0:00:02]} 35. Bd5 {[%clk 0:00:03]}  Bb5 {[%clk 0:00:01]} 36. Rd8 {[%clk 0:00:02]}  Ba4 {[%clk 0:00:01]} 37. Bc4 {[%clk 0:00:01]}  Rh5 {[%clk 0:00:01]} 38. Rb8 {[%clk 0:00:01]}  Rf5+ {[%clk 0:00:02]} 39. Ke3 {[%clk 0:00:01]}  Rc5 {[%clk 0:00:03]} 40. Rb4 {[%clk 0:00:01]}  Rc7 {[%clk 0:00:03]} 41. Rxa4 {[%clk 0:00:02]}  h5 {[%clk 0:00:04]} 42. Bd3 {[%clk 0:00:02]}  Re7+ {[%clk 0:00:05]} 43. Kd2 {[%clk 0:00:02]}  Kh6 {[%clk 0:00:06]} 44. Be4 {[%clk 0:00:02]}  Rd7+ {[%clk 0:00:06]} 45. Bd3 {[%clk 0:00:03]}  f5 {[%clk 0:00:06]} 46. Ra6 {[%clk 0:00:03]}  Kg5 {[%clk 0:00:06]} 47. Ke2 {[%clk 0:00:04]}  Re7+ {[%clk 0:00:05]} 48. Kf2 {[%clk 0:00:04]}  Rd7 {[%clk 0:00:05]} 49. f4+ {[%clk 0:00:04]}  Kh6 {[%clk 0:00:05]} 50. Bxf5 {[%clk 0:00:03]}  Rg7 {[%clk 0:00:04]} 51. Be4 {[%clk 0:00:03]}  h4 {[%clk 0:00:04]} 52. f5 {[%clk 0:00:04]}  hxg3+ {[%clk 0:00:02]} 53. Kxg3 {[%clk 0:00:04]}  Kg5 {[%clk 0:00:03]} 54. Rxg6+ {[%clk 0:00:04]}  Rxg6 {[%clk 0:00:03]} 55. fxg6 {[%clk 0:00:05]}  Kf6 {[%clk 0:00:03]} 56. Bb1 {[%clk 0:00:06]}  a5 {[%clk 0:00:03]} 57. Kg4 {[%clk 0:00:06]}  a4 {[%clk 0:00:02]} 58. Kh5 {[%clk 0:00:07]}  a3 {[%clk 0:00:02]} 59. Kh6 {[%clk 0:00:07]}  Ke7 {[%clk 0:00:01]} 60. Ba2 {[%clk 0:00:08]} 1-0


[Site "https://www.chess.com"]